[Event "26th Zadar Open 2019"]
[Site "Zadar"]
[Date "2019.12.17"]
[Round "4.5"]
[White "Bratovic, Blaz"]
[Black "Saric, Ante"]
[Result "0-1"]
[ECO "B49"]
[WhiteElo "2359"]
[BlackElo "2556"]
[Annotator "ChessBase"]
[PlyCount "122"]
[EventDate "2019.12.15"]
[EventType "swiss"]
[EventCountry "CRO"]
[SourceTitle "playchess.com"]
[Source "ChessBase"]
[SourceQuality "1"]
[TimeControl "40/5400+30:1800+30"]

1. e4 {[%emt 0:01:30]} c5 {[%emt 0:00:30]} 2. Nf3 {[%emt 0:00:30]} e6 {[%emt 0:00:00]} 3. d4 {[%emt 0:00:30]} cxd4 {[%emt 0:00:00]} 4. Nxd4 {[%emt 0:00:30]} Nc6 {[%emt 0:00:30]} 5. Nc3 {[%emt 0:00:30]} Qc7 {[%emt 0:00:00]} 6. Be2 {[%emt 0:04:30]} a6 {[%emt 0:00:00]} 7. O-O {[%emt 0:00:00]} Nf6 {[%emt 0:00:00]} 8. Be3 {[%emt 0:00:00]} Bb4 {[%emt 0:00:00]} 9. Na4 {[%emt 0:01:30]} O-O {[%emt 0:01:30]} 10. c4 {[%emt 0:03:30]} Be7 {[%emt 0:00:30]} 11. Nc3 {[%emt 0:09:30]} b6 {[%emt 0:02:30]} 12. f4 {[%emt 0:24:30]} Nxd4 {[%emt 0:07:30]} 13. Bxd4 {[%emt 0:01:30]} d6 {[%emt 0:02:30]} 14. e5 {[%emt 0:09:30]} Nd7 {[%emt 0:18:30]} 15. exd6 {[%emt 0:10:30]} Bxd6 {[%emt 0:00:30]} 16. Qe1 {[%emt 0:06:30]} Bxf4 {[%emt 0:12:30]} 17. Qh4 {[%emt 0:07:12]} Be5 {[%emt 0:01:30]} 18. Rad1 {[%emt 0:02:07]} Bb7 {[%emt 0:00:30]} 19. Be3 {[%emt 0:06:23]} Nc5 {[%emt 0:04:30]} 20. b4 {[%emt 0:03:50]} Bxc3 {[%emt 0:01:30]} 21. bxc5 {[%emt 0:00:05]} bxc5 {[%emt 0:00:30]} 22. Rd3 {[%emt 0:00:09]} Qe5 {[%emt 0:05:30]} 23. Qf2 {[%emt 0:00:28]} Bd4 {[%emt 0:14:30]} 24. Bxd4 {[%emt 0:01:34]} cxd4 {[%emt 0:00:30]} 25. Rxd4 {[%emt 0:00:08]} Bc6 {[%emt 0:01:30]} 26. Bd3 {[%emt 0:04:37]} g6 {[%emt 0:01:30]} 27. Rf4 {[%emt 0:00:49]} f5 {[%emt 0:00:30]} 28. Re1 {[%emt 0:00:37]} Qf6 {[%emt 0:00:30]} 29. Qc5 {[%emt 0:00:54]} Rac8 {[%emt 0:01:30]} 30. Qe5 {[%emt 0:00:31]} Qxe5 {[%emt 0:00:30]} 31. Rxe5 {[%emt 0:00:05]} Rfd8 {[%emt 0:00:30]} 32. Bf1 {[%emt 0:00:11]} Kf7 {[%emt 0:00:30]} 33. Ra5 {[%emt 0:00:31]} Bb7 {[%emt 0:03:30]} 34. Rf2 {[%emt 0:00:03]} Rd1 {[%emt 0:04:30]} 35. Rb2 {[%emt 0:00:07]} Rc7 {[%emt 0:00:22]} 36. Kf2 {[%emt 0:00:14]} Rc1 {[%emt 0:01:48]} 37. Be2 {[%emt 0:00:49]} Kf6 {[%emt 0:01:32]} 38. Ra4 {[%emt 0:01:57]} Rc3 {[%emt 0:03:13]} 39. Rab4 {[%emt 0:00:30]} Bc6 {[%emt 0:00:41]} 40. Rb6 {[%emt 0:00:13]} Ra3 {[%emt 0:01:35]} 41. Bf1 {[%emt 0:30:50]} Be4 {[%emt 0:01:19]} 42. Be2 {[%emt 0:00:00]} Ke5 {[%emt 0:04:30]} 43. Rd2 {[%emt 0:00:00]} Rc6 {[%emt 0:01:30]} 44. Rb8 {[%emt 0:00:00]} g5 {[%emt 0:05:30]} 45. Ra8 {[%emt 0:00:00]} g4 {[%emt 0:03:30]} 46. Ra7 {[%emt 0:00:00]} h5 {[%emt 0:01:30]} 47. Rh7 {[%emt 0:00:00]} Rc5 {[%emt 0:00:30]} 48. Rxh5 {[%emt 0:00:00]} Rca5 {[%emt 0:00:30]} 49. Bxg4 {[%emt 0:00:00]} Rxa2 {[%emt 0:00:30]} 50. Re2 {[%emt 0:00:00]} Rxe2+ {[%emt 0:02:30]} 51. Bxe2 {[%emt 0:00:00]} Ra2 {[%emt 0:00:30]} 52. Ke3 {[%emt 0:00:00]} Bxg2 {[%emt 0:00:30]} 53. Rg5 {[%emt 0:00:00]} Be4 {[%emt 0:02:30]} 54. h4 {[%emt 0:00:00]} Ra3+ {[%emt 0:00:00]} 55. Kf2 {[%emt 0:00:35]} Rh3 {[%emt 0:01:00]} 56. h5 {[%emt 0:00:13]} Kf4 {[%emt 0:00:00]} 57. Rg6 {[%emt 0:00:13]} Rh2+ {[%emt 0:00:00]} 58. Ke1 {[%emt 0:00:08]} a5 {[%emt 0:06:40]} 59. Bd1 {[%emt 0:00:13]} a4 {[%emt 0:01:37]} 60. Bxa4 {[%emt 0:02:04]} Ke3 {[%emt 0:00:14]} 61. Kf1 {[%emt 0:00:11]} f4 {[%emt 0:02:14]} 0-1

[Event "26th Zadar Open 2019"]
[Site "Zadar"]
[Date "2019.12.17"]
[Round "4.6"]
[White "Manush Shah"]
[Black "Blohberger, Felix"]
[Result "0-1"]
[ECO "E62"]
[WhiteElo "2341"]
[BlackElo "2434"]
[Annotator "NA"]
[PlyCount "106"]
[EventDate "2019.12.15"]
[EventType "swiss"]
[EventCountry "CRO"]
[SourceTitle "playchess.com"]
[Source "ChessBase"]
[SourceQuality "1"]
[TimeControl "40/5400+30:1800+30"]

1. d4 {[%emt 0:01:30]} Nf6 {[%emt 0:00:30]} 2. Nf3 {[%emt 0:00:30]} g6 {[%emt 0:00:30]} 3. c4 {[%emt 0:00:30]} Bg7 {[%emt 0:00:00]} 4. g3 {[%emt 0:00:00]} O-O {[%emt 0:00:00]} 5. Bg2 {[%emt 0:00:00]} d6 {[%emt 0:00:00]} 6. Nc3 {[%emt 0:00:00]} Nc6 {[%emt 0:00:00]} 7. O-O {[%emt 0:00:00]} e5 {[%emt 0:00:30]} 8. dxe5 {[%emt 0:00:30]} Nxe5 {[%emt 0:00:30]} 9. Nxe5 {[%emt 0:00:30]} dxe5 {[%emt 0:00:00]} 10. Qxd8 {[%emt 0:00:30]} Rxd8 {[%emt 0:00:00]} 11. Bg5 {[%emt 0:00:30]} Rd7 {[%emt 0:00:30]} 12. Rad1 {[%emt 0:10:30]} c6 {[%emt 0:00:00]} 13. b3 {[%emt 0:05:30]} Rxd1 {[%emt 0:01:00]} 14. Rxd1 {[%emt 0:00:00]} Be6 {[%emt 0:00:00]} 15. Bc1 {[%emt 0:06:00]} Bf8 {[%emt 0:05:00]} 16. Bb2 {[%emt 0:04:30]} Be7 {[%emt 0:04:30]} 17. h3 {[%emt 0:13:30]} h5 {[%emt 0:04:30]} 18. Ne4 {[%emt 0:03:30]} Nxe4 {[%emt 0:00:30]} 19. Bxe4 {[%emt 0:00:30]} f5 {[%emt 0:00:30]} 20. Bc2 {[%emt 0:00:30]} e4 {[%emt 0:00:30]} 21. f3 {[%emt 0:05:30]} exf3 {[%emt 0:03:30]} 22. exf3 {[%emt 0:01:30]} Kf7 {[%emt 0:00:00]} 23. Kg2 {[%emt 0:09:30]} a5 {[%emt 0:01:00]} 24. g4 {[%emt 0:05:30]} b5 {[%emt 0:30:30]} 25. cxb5 {[%emt 0:07:30]} cxb5 {[%emt 0:00:00]} 26. Bd3 {[%emt 0:09:20]} Rc8 {[%emt 0:08:00]} 27. Rd2 {[%emt 0:03:08]} Rd8 {[%emt 0:06:30]} 28. Rd1 {[%emt 0:01:09]} a4 {[%emt 0:14:30]} 29. Bc2 {[%emt 0:01:59]} Rc8 {[%emt 0:01:30]} 30. Rd2 {[%emt 0:00:42]} a3 {[%emt 0:05:47]} 31. Bd4 {[%emt 0:01:16]} Bf6 {[%emt 0:02:47]} 32. Bxf6 {[%emt 0:00:40]} Kxf6 {[%emt 0:00:05]} 33. gxh5 {[%emt 0:00:22]} gxh5 {[%emt 0:00:06]} 34. Kg3 {[%emt 0:01:12]} h4+ {[%emt 0:02:28]} 35. Kf4 {[%emt 0:00:45]} Rc3 {[%emt 0:03:25]} 36. Bd3 {[%emt 0:01:30]} b4 {[%emt 0:01:01]} 37. Bc2 {[%emt 0:01:12]} Rc5 {[%emt 0:01:01]} 38. Bd1 {[%emt 0:03:51]} Rc1 {[%emt 0:05:45]} 39. Rd4 {[%emt 0:01:52]} Ra1 {[%emt 0:00:29]} 40. Rd2 {[%emt 0:00:26]} Rb1 {[%emt 0:00:19]} 41. Ke3 {[%emt 0:01:36]} Rb2 {[%emt 0:12:47]} 42. Rc2 {[%emt 0:14:27]} Rxc2 {[%emt 0:01:33]} 43. Bxc2 {[%emt 0:00:09]} f4+ {[%emt 0:00:05]} 44. Kxf4 {[%emt 0:00:11]} Bxh3 {[%emt 0:00:08]} 45. Bd3 {[%emt 0:02:43]} Be6 {[%emt 0:00:14]} 46. Bc2 {[%emt 0:00:15]} h3 {[%emt 0:00:42]} 47. Kg3 {[%emt 0:00:06]} Ke5 {[%emt 0:00:18]} 48. f4+ {[%emt 0:00:15]} Kd4 {[%emt 0:00:30]} 49. f5 {[%emt 0:00:00]} Bxf5 {[%emt 0:00:30]} 50. Bxf5 {[%emt 0:00:11]} Kc3 {[%emt 0:00:30]} 51. Kf2 {[%emt 0:00:30]} Kb2 {[%emt 0:00:30]} 52. Ke3 {[%emt 0:00:30]} Kxa2 {[%emt 0:00:30]} 53. Be6 {[%emt 0:00:30]} Kb2 {[%emt 0:00:30]} 0-1

[Event "26th Zadar Open 2019"]
[Site "Zadar"]
[Date "2019.12.17"]
[Round "4.7"]
[White "Bhambure, Shantanu"]
[Black "Hnydiuk, Aleksander"]
[Result "1/2-1/2"]
[ECO "D93"]
[WhiteElo "2340"]
[BlackElo "2423"]
[Annotator "NA"]
[PlyCount "86"]
[EventDate "2019.12.15"]
[EventType "swiss"]
[EventCountry "CRO"]
[SourceTitle "playchess.com"]
[Source "ChessBase"]
[SourceQuality "1"]
[TimeControl "40/5400+30:1800+30"]

1. d4 {[%emt 0:00:30]} Nf6 {[%emt 0:13:30]} 2. c4 {[%emt 0:00:00]} g6 {[%emt 0:00:30]} 3. Nc3 {[%emt 0:00:00]} d5 {[%emt 0:00:00]} 4. Nf3 {[%emt 0:00:00]} Bg7 {[%emt 0:00:00]} 5. Bf4 {[%emt 0:00:00]} O-O {[%emt 0:00:30]} 6. e3 {[%emt 0:00:30]} c5 {[%emt 0:00:30]} 7. dxc5 {[%emt 0:00:00]} Ne4 {[%emt 0:00:30]} 8. Rc1 {[%emt 0:00:00]} Nd7 {[%emt 0:00:00]} 9. cxd5 {[%emt 0:01:30]} Qa5 {[%emt 0:00:00]} 10. Qc2 {[%emt 0:04:30]} Nxc3 {[%emt 0:10:30]} 11. bxc3 {[%emt 0:00:00]} Nxc5 {[%emt 0:00:30]} 12. e4 {[%emt 0:01:00]} Bd7 {[%emt 0:02:30]} 13. Bd2 {[%emt 0:01:30]} Rac8 {[%emt 0:13:30]} 14. c4 {[%emt 0:01:30]} Qa4 {[%emt 0:09:30]} 15. Qxa4 {[%emt 0:23:30]} Bxa4 {[%emt 0:00:30]} 16. e5 {[%emt 0:01:30]} Bd7 {[%emt 0:00:00]} 17. Bg5 {[%emt 0:12:30]} Rfe8 {[%emt 0:13:00]} 18. h3 {[%emt 0:02:30]} Bf5 {[%emt 0:00:30]} 19. Rd1 {[%emt 0:03:30]} Be4 {[%emt 0:11:30]} 20. Be2 {[%emt 0:07:30]} Bxf3 {[%emt 0:00:00]} 21. Bxf3 {[%emt 0:00:00]} Bxe5 {[%emt 0:00:00]} 22. O-O {[%emt 0:03:00]} Rc7 {[%emt 0:04:43]} 23. Rfe1 {[%emt 0:01:30]} Bd6 {[%emt 0:00:34]} 24. Be3 {[%emt 0:04:30]} Na4 {[%emt 0:11:21]} 25. Rb1 {[%emt 0:04:30]} b6 {[%emt 0:00:37]} 26. Rec1 {[%emt 0:01:30]} Rec8 {[%emt 0:01:28]} 27. Bd1 {[%emt 0:04:30]} Nc5 {[%emt 0:00:42]} 28. Be2 {[%emt 0:02:30]} Nd7 {[%emt 0:03:26]} 29. Bd4 {[%emt 0:00:30]} Be5 {[%emt 0:00:22]} 30. Be3 {[%emt 0:00:30]} Bd6 {[%emt 0:00:18]} 31. Bd4 {[%emt 0:00:30]} Be5 {[%emt 0:00:25]} 32. Be3 {[%emt 0:00:00]} Nf6 {[%emt 0:00:52]} 33. Bd3 {[%emt 0:05:05]} Bd6 {[%emt 0:00:04]} 34. g3 {[%emt 0:01:47]} Nd7 {[%emt 0:00:30]} 35. Bd4 {[%emt 0:00:29]} Be5 {[%emt 0:00:37]} 36. Be3 {[%emt 0:00:04]} Bd6 {[%emt 0:00:04]} 37. Bd4 {[%emt 0:00:03]} Bc5 {[%emt 0:00:59]} 38. Bc3 {[%emt 0:02:08]} Ba3 {[%emt 0:00:34]} 39. Re1 {[%emt 0:00:13]} Nc5 {[%emt 0:00:34]} 40. Bf1 {[%emt 0:02:39]} Nb7 {[%emt 0:00:25]} 41. h4 {[%emt 0:33:22]} Nd6 {[%emt 0:33:27]} 42. Be5 {[%emt 0:02:23]} f6 {[%emt 0:00:54]} 43. Bf4 {[%emt 0:00:00]} Kf7 {[%emt 0:00:00]} 1/2-1/2

[Event "26th Zadar Open 2019"]
[Site "Zadar"]
[Date "2019.12.17"]
[Round "4.8"]
[White "Rezan, Sasa"]
[Black "Rudolf, Michal"]
[Result "1/2-1/2"]
[ECO "E05"]
[WhiteElo "2415"]
[BlackElo "2328"]
[Annotator "NA"]
[PlyCount "128"]
[EventDate "2019.12.15"]
[EventType "swiss"]
[EventCountry "CRO"]
[SourceTitle "playchess.com"]
[Source "ChessBase"]
[SourceQuality "1"]
[TimeControl "40/5400+30:1800+30"]

1. c4 {[%emt 0:00:30]} e6 {[%emt 0:01:30]} 2. Nf3 {[%emt 0:00:30]} d5 {[%emt 0:00:30]} 3. g3 {[%emt 0:00:30]} Nf6 {[%emt 0:00:30]} 4. Bg2 {[%emt 0:01:30]} Be7 {[%emt 0:00:30]} 5. O-O {[%emt 0:00:30]} O-O {[%emt 0:00:00]} 6. d4 {[%emt 0:00:30]} dxc4 {[%emt 0:00:00]} 7. Ne5 {[%emt 0:01:30]} Nc6 {[%emt 0:00:30]} 8. Nxc6 {[%emt 0:01:30]} bxc6 {[%emt 0:00:00]} 9. Na3 {[%emt 0:00:30]} Bxa3 {[%emt 0:04:00]} 10. bxa3 {[%emt 0:00:00]} Nd5 {[%emt 0:08:30]} 11. Qc2 {[%emt 0:10:00]} a5 {[%emt 0:08:30]} 12. Qxc4 {[%emt 0:05:30]} Ba6 {[%emt 0:00:00]} 13. Qc2 {[%emt 0:01:30]} a4 {[%emt 0:04:00]} 14. Rd1 {[%emt 0:03:30]} Bb5 {[%emt 0:01:30]} 15. e4 {[%emt 0:09:30]} Nb6 {[%emt 0:00:30]} 16. Bd2 {[%emt 0:01:30]} Re8 {[%emt 0:13:30]} 17. Bb4 {[%emt 0:02:30]} Qc8 {[%emt 0:00:30]} 18. Rac1 {[%emt 0:04:30]} Qa6 {[%emt 0:01:30]} 19. h4 {[%emt 0:08:30]} Rad8 {[%emt 0:01:30]} 20. Kh2 {[%emt 0:12:30]} h6 {[%emt 0:08:30]} 21. Bc5 {[%emt 0:03:30]} Qc8 {[%emt 0:09:30]} 22. Qb2 {[%emt 0:03:30]} Nd7 {[%emt 0:06:30]} 23. Qb4 {[%emt 0:04:30]} Nf6 {[%emt 0:00:30]} 24. Be7 {[%emt 0:06:24]} Ng4+ {[%emt 0:01:30]} 25. Kg1 {[%emt 0:00:01]} Rd7 {[%emt 0:00:30]} 26. Bc5 {[%emt 0:00:01]} Qd8 {[%emt 0:04:30]} 27. Re1 {[%emt 0:05:31]} Nf6 {[%emt 0:05:07]} 28. Bf3 {[%emt 0:01:06]} Qb8 {[%emt 0:02:58]} 29. Rb1 {[%emt 0:01:18]} Qc8 {[%emt 0:00:54]} 30. Kg2 {[%emt 0:00:46]} Qa6 {[%emt 0:01:51]} 31. Qc3 {[%emt 0:01:13]} Rdd8 {[%emt 0:02:51]} 32. Rbd1 {[%emt 0:02:14]} Qc8 {[%emt 0:01:39]} 33. Bb4 {[%emt 0:01:33]} Qa6 {[%emt 0:03:00]} 34. Bc5 {[%emt 0:02:04]} Qc8 {[%emt 0:00:22]} 35. Bb4 {[%emt 0:00:05]} Qa6 {[%emt 0:00:00]} 36. Rc1 {[%emt 0:00:39]} Qc8 {[%emt 0:00:34]} 37. Rb1 {[%emt 0:06:04]} Qa6 {[%emt 0:00:12]} 38. Qe3 {[%emt 0:00:33]} Qc8 {[%emt 0:04:20]} 39. Bc3 {[%emt 0:00:51]} Nd7 {[%emt 0:00:46]} 40. Ba1 {[%emt 0:00:30]} Nb6 {[%emt 0:00:00]} 41. Qc3 {[%emt 0:05:07]} f6 {[%emt 0:07:56]} 42. Bh5 {[%emt 0:05:30]} Re7 {[%emt 0:00:30]} 43. Qc5 {[%emt 0:01:30]} Qd7 {[%emt 0:00:30]} 44. Rbc1 {[%emt 0:03:03]} Qd6 {[%emt 0:00:30]} 45. Qc3 {[%emt 0:01:53]} Nc4 {[%emt 0:02:30]} 46. Be2 {[%emt 0:00:28]} Nb6 {[%emt 0:01:30]} 47. Bxb5 {[%emt 0:06:34]} cxb5 {[%emt 0:00:30]} 48. Qc5 {[%emt 0:00:35]} Rb8 {[%emt 0:04:30]} 49. Qxb5 {[%emt 0:01:56]} Qxa3 {[%emt 0:00:30]} 50. Qc5 {[%emt 0:00:34]} Qxc5 {[%emt 0:01:30]} 51. Rxc5 {[%emt 0:00:23]} Kf7 {[%emt 0:00:30]} 52. Rb1 {[%emt 0:01:10]} Ke8 {[%emt 0:01:30]} 53. Bc3 {[%emt 0:00:28]} Ra8 {[%emt 0:01:45]} 54. Bd2 {[%emt 0:01:12]} Rd7 {[%emt 0:00:56]} 55. Bf4 {[%emt 0:00:23]} Rxd4 {[%emt 0:00:31]} 56. Rxc7 {[%emt 0:00:50]} Nd7 {[%emt 0:00:07]} 57. Rbb7 {[%emt 0:00:54]} Rd8 {[%emt 0:01:38]} 58. f3 {[%emt 0:00:34]} h5 {[%emt 0:01:57]} 59. Kf2 {[%emt 0:02:01]} Rd3 {[%emt 0:00:43]} 60. Bc1 {[%emt 0:00:58]} Rd1 {[%emt 0:06:23]} 61. Ke2 {[%emt 0:01:47]} Rg1 {[%emt 0:00:19]} 62. Kf2 {[%emt 0:01:08]} Rd1 {[%emt 0:00:05]} 63. Ke2 {[%emt 0:01:18]} Rg1 {[%emt 0:00:05]} 64. Kf2 {[%emt 0:00:22]} Rd1 {[%emt 0:01:18]} 1/2-1/2

[Event "26th Zadar Open 2019"]
[Site "Zadar"]
[Date "2019.12.17"]
[Round "4.9"]
[White "Pecnik, Leo"]
[Black "Moksh Amit Doshi"]
[Result "1-0"]
[ECO "B86"]
[WhiteElo "2326"]
[BlackElo "2399"]
[Annotator "NA"]
[PlyCount "65"]
[EventDate "2019.12.15"]
[EventType "swiss"]
[EventCountry "CRO"]
[SourceTitle "playchess.com"]
[Source "ChessBase"]
[SourceQuality "1"]
[TimeControl "40/5400+30:1800+30"]

1. e4 {[%emt 0:00:30]} c5 {[%emt 0:04:30]} 2. Nf3 {[%emt 0:00:30]} d6 {[%emt 0:00:00]} 3. d4 {[%emt 0:00:00]} cxd4 {[%emt 0:00:00]} 4. Nxd4 {[%emt 0:00:00]} Nf6 {[%emt 0:00:30]} 5. Nc3 {[%emt 0:00:30]} a6 {[%emt 0:00:00]} 6. Bc4 {[%emt 0:00:00]} e6 {[%emt 0:00:00]} 7. Bb3 {[%emt 0:00:00]} Nbd7 {[%emt 0:01:30]} 8. f4 {[%emt 0:02:30]} Nc5 {[%emt 0:01:30]} 9. e5 {[%emt 0:03:30]} dxe5 {[%emt 0:02:30]} 10. fxe5 {[%emt 0:00:00]} Nxb3 {[%emt 0:15:30]} 11. axb3 {[%emt 0:01:00]} Nd5 {[%emt 0:00:30]} 12. O-O {[%emt 0:06:30]} Nxc3 {[%emt 0:11:30]} 13. bxc3 {[%emt 0:00:30]} Qc7 {[%emt 0:03:30]} 14. Kh1 {[%emt 0:14:30]} Be7 {[%emt 0:02:30]} 15. Bf4 {[%emt 0:18:30]} Bd7 {[%emt 0:07:30]} 16. Qf3 {[%emt 0:07:30]} O-O {[%emt 0:09:30]} 17. Rad1 {[%emt 0:03:30]} b5 {[%emt 0:07:30]} 18. Qg3 {[%emt 0:01:30]} Rfd8 {[%emt 0:01:30]} 19. Bh6 {[%emt 0:09:30]} g6 {[%emt 0:01:30]} 20. Qf4 {[%emt 0:02:30]} Rf8 {[%emt 0:06:30]} 21. Bxf8 {[%emt 0:06:30]} Rxf8 {[%emt 0:00:30]} 22. Nf3 {[%emt 0:00:30]} f5 {[%emt 0:01:30]} 23. h4 {[%emt 0:04:38]} Bc8 {[%emt 0:01:30]} 24. h5 {[%emt 0:01:37]} Rf7 {[%emt 0:04:47]} 25. Ng5 {[%emt 0:02:18]} Rf8 {[%emt 0:00:05]} 26. Nf3 {[%emt 0:01:03]} Qxc3 {[%emt 0:02:15]} 27. Qh6 {[%emt 0:04:00]} Rf7 {[%emt 0:01:03]} 28. Rd3 {[%emt 0:03:15]} Qc7 {[%emt 0:01:21]} 29. Rfd1 {[%emt 0:03:30]} Rg7 {[%emt 0:01:08]} 30. Ng5 {[%emt 0:01:45]} Bf8 {[%emt 0:04:51]} 31. Rd8 {[%emt 0:00:31]} Bd7 {[%emt 0:00:08]} 32. Qxg7+ {[%emt 0:01:01]} Kxg7 {[%emt 0:00:11]} 33. R8xd7+ {[%emt 0:00:07]} 1-0

[Event "26th Zadar Open 2019"]
[Site "Zadar"]
[Date "2019.12.17"]
[Round "4.10"]
[White "Martinovic, Sasa"]
[Black "Mosesov, Danyil"]
[Result "0-1"]
[ECO "D37"]
[WhiteElo "2544"]
[BlackElo "2290"]
[Annotator "ChessBase"]
[PlyCount "84"]
[EventDate "2019.12.15"]
[EventType "swiss"]
[EventCountry "CRO"]
[SourceTitle "playchess.com"]
[Source "ChessBase"]
[SourceQuality "1"]
[TimeControl "40/5400+30:1800+30"]

1. d4 {[%emt 0:00:30]} Nf6 {[%emt 0:03:30]} 2. c4 {[%emt 0:00:00]} e6 {[%emt 0:00:00]} 3. Nf3 {[%emt 0:00:00]} a6 {[%emt 0:00:00]} 4. Nc3 {[%emt 0:00:30]} d5 {[%emt 0:00:00]} 5. cxd5 {[%emt 0:00:00]} exd5 {[%emt 0:00:00]} 6. Bg5 {[%emt 0:00:00]} Be6 {[%emt 0:00:30]} 7. Bxf6 {[%emt 0:00:30]} Qxf6 {[%emt 0:02:30]} 8. Qb3 {[%emt 0:00:30]} Ra7 {[%emt 0:06:30]} 9. g3 {[%emt 0:00:00]} Qd8 {[%emt 0:04:30]} 10. h4 {[%emt 0:01:00]} c5 {[%emt 0:07:30]} 11. dxc5 {[%emt 0:02:30]} Bxc5 {[%emt 0:01:30]} 12. Ng5 {[%emt 0:01:30]} Qf6 {[%emt 0:10:30]} 13. O-O-O {[%emt 0:04:30]} O-O {[%emt 0:03:30]} 14. Nxd5 {[%emt 0:19:30]} Bxd5 {[%emt 0:03:30]} 15. Rxd5 {[%emt 0:08:30]} Bxf2 {[%emt 0:04:30]} 16. Bg2 {[%emt 0:13:30]} b5 {[%emt 0:05:30]} 17. Kb1 {[%emt 0:04:30]} Qb6 {[%emt 0:16:30]} 18. Rhd1 {[%emt 0:15:30]} Re7 {[%emt 0:04:30]} 19. Rd6 {[%emt 0:05:30]} Qc5 {[%emt 0:09:06]} 20. Rd8 {[%emt 0:06:54]} Qc7 {[%emt 0:03:59]} 21. Rxf8+ {[%emt 0:07:27]} Kxf8 {[%emt 0:00:07]} 22. Nxh7+ {[%emt 0:00:06]} Kg8 {[%emt 0:00:01]} 23. Ng5 {[%emt 0:00:07]} Nd7 {[%emt 0:03:28]} 24. Bd5 {[%emt 0:01:57]} Ne5 {[%emt 0:01:01]} 25. Rc1 {[%emt 0:00:38]} Qd7 {[%emt 0:01:19]} 26. Qc2 {[%emt 0:04:46]} g6 {[%emt 0:00:05]} 27. Ne4 {[%emt 0:00:14]} Kg7 {[%emt 0:01:50]} 28. Rd1 {[%emt 0:00:00]} Qf5 {[%emt 0:02:02]} 29. Rf1 {[%emt 0:02:05]} Ng4 {[%emt 0:00:04]} 30. Nxf2 {[%emt 0:01:26]} Qxc2+ {[%emt 0:00:00]} 31. Kxc2 {[%emt 0:00:03]} Ne3+ {[%emt 0:00:28]} 32. Kd3 {[%emt 0:00:28]} Nxf1 {[%emt 0:00:01]} 33. Ne4 {[%emt 0:01:16]} f5 {[%emt 0:00:32]} 34. Nc5 {[%emt 0:00:17]} Re3+ {[%emt 0:02:42]} 35. Kd4 {[%emt 0:00:03]} Rxe2 {[%emt 0:00:01]} 36. b4 {[%emt 0:00:33]} Nxg3 {[%emt 0:00:56]} 37. Nxa6 {[%emt 0:00:10]} f4 {[%emt 0:00:13]} 38. Nc7 {[%emt 0:00:48]} Nf5+ {[%emt 0:00:42]} 39. Kc5 {[%emt 0:01:07]} Rc2+ {[%emt 0:00:46]} 40. Kb6 {[%emt 0:00:01]} Kf6 {[%emt 0:01:46]} 41. Nxb5 {[%emt 0:30:37]} Ke5 {[%emt 0:31:38]} 42. Bb3 {[%emt 0:00:14]} Rc1 {[%emt 0:01:05]} 0-1

[Event "26th Zadar Open 2019"]
[Site "Zadar"]
[Date "2019.12.17"]
[Round "4.11"]
[White "Dimitrov, Vladimir"]
[Black "Livaic, Leon"]
[Result "0-1"]
[ECO "E48"]
[WhiteElo "2285"]
[BlackElo "2505"]
[Annotator "ChessBase"]
[PlyCount "70"]
[EventDate "2019.12.15"]
[EventType "swiss"]
[EventCountry "CRO"]
[SourceTitle "playchess.com"]
[Source "ChessBase"]
[SourceQuality "1"]
[TimeControl "40/5400+30:1800+30"]

1. d4 {[%emt 0:00:30]} Nf6 {[%emt 0:02:30]} 2. c4 {[%emt 0:00:00]} e6 {[%emt 0:00:00]} 3. Nc3 {[%emt 0:00:00]} Bb4 {[%emt 0:00:00]} 4. e3 {[%emt 0:00:30]} O-O {[%emt 0:00:30]} 5. Bd3 {[%emt 0:00:00]} c5 {[%emt 0:00:30]} 6. Nge2 {[%emt 0:00:00]} cxd4 {[%emt 0:01:30]} 7. exd4 {[%emt 0:00:30]} d5 {[%emt 0:00:00]} 8. cxd5 {[%emt 0:00:00]} Nxd5 {[%emt 0:00:00]} 9. O-O {[%emt 0:00:00]} Nc6 {[%emt 0:03:30]} 10. Nxd5 {[%emt 0:01:30]} Qxd5 {[%emt 0:02:30]} 11. Qc2 {[%emt 0:04:30]} h6 {[%emt 0:08:30]} 12. a3 {[%emt 0:03:30]} Bd6 {[%emt 0:06:30]} 13. Rd1 {[%emt 0:05:30]} Bd7 {[%emt 0:00:30]} 14. Bh7+ {[%emt 0:02:30]} Kh8 {[%emt 0:00:30]} 15. Be4 {[%emt 0:00:00]} Qh5 {[%emt 0:00:00]} 16. Bf4 {[%emt 0:08:00]} Bxf4 {[%emt 0:01:00]} 17. Nxf4 {[%emt 0:00:30]} Qg5 {[%emt 0:00:00]} 18. g3 {[%emt 0:01:30]} Rac8 {[%emt 0:04:00]} 19. Qe2 {[%emt 0:04:30]} Rfe8 {[%emt 0:07:30]} 20. h4 {[%emt 0:12:30]} Qf6 {[%emt 0:05:30]} 21. Bg2 {[%emt 0:08:30]} Nxd4 {[%emt 0:28:30]} 22. Qg4 {[%emt 0:00:30]} e5 {[%emt 0:00:30]} 23. Qxd7 {[%emt 0:00:30]} Rcd8 {[%emt 0:00:30]} 24. Nh5 {[%emt 0:02:30]} Rxd7 {[%emt 0:00:30]} 25. Nxf6 {[%emt 0:00:30]} gxf6 {[%emt 0:00:00]} 26. Kf1 {[%emt 0:00:30]} Rc7 {[%emt 0:04:00]} 27. Rac1 {[%emt 0:00:00]} Rec8 {[%emt 0:00:30]} 28. Rxc7 {[%emt 0:01:00]} Rxc7 {[%emt 0:00:00]} 29. Bd5 {[%emt 0:02:30]} Kg7 {[%emt 0:01:00]} 30. Rd2 {[%emt 0:00:30]} b6 {[%emt 0:00:30]} 31. Kg2 {[%emt 0:01:30]} f5 {[%emt 0:01:30]} 32. f3 {[%emt 0:00:30]} f6 {[%emt 0:01:30]} 33. Kf2 {[%emt 0:00:30]} Kf8 {[%emt 0:00:00]} 34. Ke3 {[%emt 0:01:30]} Ke7 {[%emt 0:00:00]} 35. Ba2 {[%emt 0:00:30]} Rc1 {[%emt 0:01:30]} 0-1